fUSD/lending_fUSD_20250610
["ID","MTS","AMOUNT","RATE_DAILY","PERIOD"]
[365316098,1749595841754,-500.0,0.00017482,2]
[365316122,1749595841972,-235.50641215,0.00017482,2]
[365316124,1749595841982,-500.0,0.00017482,2]
[365316127,1749595841994,-500.0,0.00017482,2]
[365316129,1749595842004,-264.78579023,0.00017482,2]
[365316131,1749595842013,-500.0,0.00017482,2]
[365316133,1749595842023,-500.0,0.00017482,2]
[365316135,1749595842032,-500.0,0.00017482,2]
[365316137,1749595842041,-500.0,0.00017482,2]
[365316138,1749595842050,-6367.08035458,0.00018901,2]
[365316140,1749595842059,-6367.08035458,0.00019151,2]
[365316142,1749595842069,-22265.76271253,0.000197,2]
[365316144,1749595842079,-216.453283,0.0001971,2]
[365316146,1749595842088,-216.453283,0.0001971,2]
[365316148,1749595842097,-187.336563,0.0001971,2]
[365316150,1749595842107,-187.336563,0.0001971,2]
[365316152,1749595842116,-151.0,0.0001971,2]
[365316154,1749595842125,-9689.63966301,0.00019722,2]
[365316156,1749595842135,-4343.29,0.00019726,2]
[365316158,1749595842144,-1679.26,0.00019726,2]
[365316160,1749595842153,-156.587,0.00019726,2]
[365316162,1749595842163,-9689.63966301,0.00019744,2]
[365316164,1749595842172,-1201.43258318,0.00019762,2]
[365316166,1749595842181,-9689.63966301,0.00019767,2]
[365316168,1749595842190,-486.12,0.00019772,2]
[365316170,1749595842199,-155.15,0.00019782,2]
[365316172,1749595842208,-3330.0,0.00019782,2]
[365316174,1749595842216,-945.0,0.00019782,2]
[365316176,1749595842225,-636.0,0.00019782,2]
[365316178,1749595842234,-802.0,0.00019782,2]
[365316180,1749595842242,-1274.0,0.00019782,2]
[365316182,1749595842251,-557.0,0.00019782,2]
[365316184,1749595842260,-589.0,0.00019782,2]
[365316186,1749595842269,-926.0,0.00019782,2]
[365316188,1749595842278,-1999.0,0.00019782,2]
[365316189,1749595842288,-1672.0,0.00019782,2]
[365316191,1749595842298,-7017.0,0.00019782,2]
[365316193,1749595842307,-150.0,0.00019782,2]
[365316195,1749595842315,-295.506,0.00019782,2]
[365316197,1749595842324,-4085.0,0.00019782,2]
[365316199,1749595842333,-883.0,0.00019782,2]
[365316201,1749595842343,-150.0,0.00019782,2]
[365316203,1749595842352,-9689.63966301,0.00019789,2]
[365316205,1749595842361,-151.0,0.00019792,2]
[365316207,1749595842371,-252.257113,0.00019794,2]
[365316209,1749595842380,-252.257113,0.00019794,2]
[365316211,1749595842401,-151.0,0.00019794,2]
[365316213,1749595842410,-500.0,0.00019799,2]
[365316215,1749595842419,-500.0,0.00019799,2]
[365316217,1749595842429,-209.66174142,0.00019799,2]
[365316219,1749595842438,-212.92932275,0.00019799,2]
[365316222,1749595842447,-1000.0,0.000198,2]
[365316224,1749595842456,-1000.0,0.000198,2]
[365316226,1749595842465,-1000.0,0.000198,2]
[365316228,1749595842474,-500.0,0.000198,2]
[365316230,1749595842483,-151331.25586928,0.000198,2]
[365316232,1749595842495,-1407.35,0.000198,2]
[365316305,1749595843413,-1163.59,0.00019178,2]
[365316306,1749595843422,-4019.43836681,0.000198,2]
[365316310,1749595843676,-796.87,0.00019041,2]
[365316312,1749595843686,-1803.98905041,0.000198,2]
[365316570,1749595846307,-6367.08035458,0.00019401,2]
[365316571,1749595846317,-29183.8340135,0.000198,2]
[365316572,1749595846326,-1000.0,0.000198,2]
[365316573,1749595846335,-990.0,0.000198,7]
[365316574,1749595846344,-9689.63966301,0.00019811,2]
[365316575,1749595846353,-110.8600431,0.0001982,2]
[365316582,1749595846417,-49.97464282,0.0001982,2]
[365316584,1749595846426,-1201.43258318,0.00019831,2]
[365316586,1749595846436,-9689.63966301,0.00019833,2]
[365316588,1749595846445,-209.66174142,0.0001984,2]
[365316590,1749595846455,-9689.63966301,0.00019856,2]
[365316592,1749595846465,-5000.0,0.00019868,2]
[365316594,1749595846475,-9689.63966301,0.00019878,2]
[365316596,1749595846484,-216.453283,0.00019878,2]
[365316598,1749595846494,-216.453283,0.00019878,2]
[365316600,1749595846503,-216.453283,0.00019878,2]
[365316602,1749595846512,-216.453283,0.00019878,2]
[365316604,1749595846522,-187.336563,0.00019878,2]
[365316606,1749595846531,-187.336563,0.00019878,2]
[365316608,1749595846540,-187.336563,0.00019878,2]
[365316610,1749595846550,-109.15732363,0.00019878,2]
[365316612,1749595846562,-78.17923937,0.00019878,2]
[365316614,1749595846571,-151.0,0.00019878,2]
[365316616,1749595846581,-151.0,0.00019878,2]
[365316618,1749595846590,-427.75,0.00019878,2]
[365316620,1749595846600,-216.453283,0.00019879,2]
[365316622,1749595846609,-216.453283,0.00019879,2]
[365316624,1749595846618,-187.336563,0.00019879,2]
[365316626,1749595846628,-187.336563,0.00019879,2]
[365316628,1749595846638,-151.0,0.00019879,2]
[365316630,1749595846648,-151.0,0.00019879,2]
[365316632,1749595846657,-252.257113,0.00019879,2]
[365316634,1749595846667,-252.257113,0.00019879,2]
[365316636,1749595846676,-151.0,0.00019879,2]
[365316638,1749595846685,-209.66174142,0.0001988,2]
[365316640,1749595846695,-154.84117823,0.00019886,2]
[365316642,1749595846705,-4343.29,0.0001989,2]
[365316644,1749595846714,-1679.26,0.0001989,2]
[365316646,1749595846724,-158.54,0.0001989,2]
[365316648,1749595846733,-610.7374574,0.00019891,2]
[365316650,1749595846743,-619.2729814,0.00019891,2]
[365316652,1749595846755,-500.0,0.00019891,2]
[365316654,1749595846765,-2745.22708553,0.00019891,2]
[365316677,1749595846981,-4076.35679627,0.00019891,2]
[365316679,1749595846991,-500.0,0.00019891,2]
[365316681,1749595847000,-1000.0,0.00019899,2]
[365316683,1749595847010,-500.0,0.00019899,2]
[365316685,1749595847019,-500.0,0.00019899,2]
[365316687,1749595847028,-500.0,0.00019899,2]
[365316689,1749595847038,-500.0,0.00019899,2]
[365316691,1749595847047,-491.209468,0.000199,2]
[365316693,1749595847056,-7882.19140573,0.000199,2]
[365316695,1749595847069,-5135.3494555,0.000199,2]
[365316697,1749595847081,-2202.86655458,0.000199,2]
[365316708,1749595847177,-1650.78381267,0.000199,2]
[365316711,1749595847188,-4576.1029701,0.000199,2]
[365316713,1749595847199,-788.000002,0.000199,2]
[365316910,1749595871371,207.0,0.00015952,2]
[365316911,1749595961587,203.0,0.00015952,2]
[365316912,1749596081473,210.00002,0.00015952,2]
[365316916,1749596732330,-642.60668237,0.00016164,2]
[365316917,1749596732352,-300.0,0.00016437,2]
[365316918,1749596732375,-123.91581064,0.00016437,2]
[365316920,1749596766789,200.54,0.00013699,2]
[365316921,1749596829118,-1076.08418936,0.00016437,2]
[365316922,1749596829141,-300.0,0.00016437,2]
[365316923,1749596829163,-550.0,0.00016437,2]
[365316924,1749596829184,-300.0,0.00016437,2]
[365316925,1749596829207,-470.0,0.00016438,2]
[365316926,1749596829228,-500.0,0.00016438,2]
[365316927,1749596829249,-500.0,0.00016438,2]
[365316928,1749596829270,-500.0,0.00016438,2]
[365316929,1749596829291,-490.0,0.00016438,2]
[365316930,1749596829311,-500.0,0.00016438,2]
[365316931,1749596829331,-490.0,0.00016438,2]
[365316932,1749596829352,-490.0,0.00016438,2]
[365316933,1749596829373,-517.92,0.00016438,2]
[365316934,1749596829394,-490.0,0.00016438,2]
[365316935,1749596829416,-384.05520477,0.00016438,2]
[365316936,1749596829437,-480.0,0.00016438,2]
[365316937,1749596829459,-480.0,0.00016438,2]
[365316938,1749596829481,-490.0,0.00016438,2]
[365316939,1749596829503,-54.07835622,0.00016438,2]
[365316940,1749596835133,-425.92164378,0.00016438,2]
[365316941,1749596835156,-490.0,0.00016438,2]
[365316942,1749596835179,-486.25221613,0.00016438,2]
[365316943,1749596835200,-315.73,0.00016438,2]
[365316944,1749596835225,-489.62,0.00016438,2]
[365316945,1749596835249,-326.89090053,0.00016438,2]
[365316946,1749596835270,-490.0,0.00016438,2]
[365316947,1749596835294,-490.0,0.00016438,2]
[365316948,1749596835318,-490.0,0.00016438,2]
[365316949,1749596835342,-480.0,0.00016438,2]
[365316950,1749596835366,-490.0,0.00016438,2]
[365316951,1749596835387,-312.30642951,0.00016438,2]
[365316952,1749596844091,-107.69357049,0.00016438,2]
[365316953,1749596844115,-102.4317452,0.00016438,2]
[365316954,1749596846089,-387.5682548,0.00016438,2]
[365316955,1749596846112,-121.06997888,0.00016602,2]
[365316956,1749596847067,504.88082507,0.00013,2]
[365316957,1749596852093,-220.99002112,0.00016602,2]
[365316958,1749596852117,-142.3682183,0.00016602,2]
[365316960,1749596961131,-570.05855021,0.00016164,2]
[365316961,1749596961155,-731.17,0.00016316,2]
[365316968,1749597031480,-490.0,0.00016438,2]
[365316969,1749597031490,-490.0,0.00016438,2]
[365316970,1749597031500,-490.0,0.00016438,2]
[365316971,1749597031510,-339.67967931,0.00016438,2]
[365316972,1749597031524,-140.32032069,0.00016438,2]
[365316973,1749597031534,-151.62156555,0.00016438,2]
[365316974,1749597031544,-490.0,0.00016438,2]
[365316975,1749597031554,-1200.0,0.00016601,2]
[365316976,1749597031564,-546.33641606,0.00016602,2]
[365316977,1749597031574,-490.0,0.00016602,2]
[365316978,1749597031584,-490.0,0.00016602,2]
[365316979,1749597031594,-490.0,0.00016602,2]
[365316980,1749597031604,-423.74,0.00016602,2]
[365316981,1749597031616,-490.0,0.00016602,2]
[365316982,1749597031626,-490.0,0.00016767,2]
[365316983,1749597031636,-490.0,0.00016767,2]
[365316984,1749597031645,-630.58,0.00016767,2]
[365316985,1749597031656,-631.06,0.00016931,2]
[365316986,1749597031666,-490.0,0.00016931,2]
[365316987,1749597031680,-490.0,0.00017095,2]
[365316988,1749597031690,-418.63353369,0.0001726,2]
[365316989,1749597031699,-200.0,0.00017357,2]
[365316990,1749597031709,-833.29909032,0.00017667,2]
[365316991,1749597031721,-165.99,0.00018132,2]
[365316992,1749597031731,-200.0,0.00018139,2]
[365316993,1749597031741,-200.0,0.00018147,3]
[365316994,1749597031751,-99.20438986,0.00018171,2]
[365316995,1749597031763,-100.79561014,0.00018171,2]
[365316996,1749597031774,-268.18,0.00018195,2]
[365316997,1749597031783,-336.65,0.00018198,2]
[365316998,1749597031793,-750.12163186,0.00018227,2]
[365316999,1749597031805,-454.92529219,0.00018227,2]
[365317000,1749597031816,-476.47053834,0.00018227,2]
[365317001,1749597031828,-2729.8716691,0.00018227,2]
[365317002,1749597031840,-1063.44509394,0.00018227,2]
[365317003,1749597031852,-1108.62577457,0.00018227,2]
[365317004,1749597031862,-150.0,0.0001823,7]
[365317005,1749597031872,-207.4,0.0001833,2]
[365317006,1749597031882,-1163.0,0.00018356,2]
[365317007,1749597031892,-666.0,0.00018476,2]
[365317008,1749597031902,-171.96679973,0.0001858,2]
[365317009,1749597031914,-559.20320027,0.0001858,2]
[365317010,1749597031925,-151.0,0.00018894,2]
[365317011,1749597031935,-13.91332486,0.000189,2]
[365317012,1749597031948,-339.17912446,0.000189,2]
[365317013,1749597031961,-22.27755068,0.000189,2]
[365317014,1749597031972,-375.37,0.000189,2]
[365317015,1749597031982,-1488.73329753,0.00018906,2]
[365317016,1749597031994,-559.46319352,0.00018906,2]
[365317017,1749597032007,-684.52012881,0.00018906,2]
[365317018,1749597032019,-600.56056441,0.00018906,2]
[365317019,1749597032032,-512.011581,0.00018906,2]
[365317020,1749597032045,-20054.71123473,0.00018906,2]
[365317021,1749597032057,-200.0,0.00018936,4]
[365317023,1749597032067,-796.87,0.00018941,2]
[365317025,1749597032078,-375.37,0.00019,2]
[365317027,1749597032088,-375.37,0.00019,2]
[365317029,1749597032098,-375.37,0.00019,2]
[365317031,1749597032108,-796.87,0.00019041,2]
[365317033,1749597032121,-1163.59,0.00019078,2]
[365317035,1749597032131,-2228.2296,0.00019139,2]
[365317037,1749597032140,-454.85,0.00019155,2]
[365317039,1749597032149,-454.85,0.00019155,2]
[365317041,1749597032159,-547.91,0.00019155,2]
[365317043,1749597032168,-905.23,0.00019155,2]
[365317045,1749597032178,-454.85,0.00019155,2]
[365317047,1749597032188,-151.0,0.00019178,2]
[365317048,1749597032199,-172.86,0.00019178,2]
[365317050,1749597032209,-853.67,0.00019178,2]
[365317052,1749597032219,-150.27,0.00019178,2]
[365317054,1749597032229,-150.0,0.00019178,2]
[365317056,1749597032239,-150.0,0.00019178,2]
[365317058,1749597032249,-1163.59,0.00019178,2]
[365317060,1749597032259,-150.0,0.00019178,2]
[365317062,1749597032270,-1163.59,0.00019178,2]
[365317064,1749597032283,-1163.59,0.00019178,2]
[365317067,1749597032293,-1163.59,0.00019178,2]
[365317069,1749597032303,-155.0,0.00019525,2]
[365317071,1749597032313,-4085.0,0.00019525,2]
[365317073,1749597032322,-559.526,0.00019606,2]
[365317075,1749597032332,-215.0738,0.00019699,2]
[365317077,1749597032342,-2180.7572,0.000197,2]
[365317079,1749597032352,-311.76129542,0.000197,2]
[365317081,1749597032364,-200.0,0.00019726,5]
[365317083,1749597032374,-156.587,0.00019726,2]
[365317085,1749597032384,-945.0,0.00019782,2]
[365317087,1749597032394,-3330.0,0.00019782,2]
[365317089,1749597032405,-802.0,0.00019782,2]
[365317091,1749597032415,-926.0,0.00019782,2]
[365317093,1749597032425,-557.0,0.00019782,2]
[365317095,1749597032434,-206.779,0.00019782,2]
[365317097,1749597032444,-1999.0,0.00019782,2]
[365317099,1749597032454,-1672.0,0.00019782,2]
[365317101,1749597032464,-177.488,0.00019782,2]
[365317103,1749597032474,-1159.0,0.00019782,2]
[365317105,1749597032484,-1572.58675476,0.00019799,2]
[365317107,1749597032501,-500.0,0.00019799,2]
[365317109,1749597032517,-500.0,0.00019799,2]
[365317111,1749597032527,-500.0,0.00019799,2]
[365317112,1749597032538,-500.0,0.00019799,2]
[365317114,1749597032547,-500.0,0.00019799,2]
[365317116,1749597032557,-500.0,0.00019799,2]
[365317118,1749597032566,-426.86043105,0.00019799,2]
[365317119,1749597032576,-500.0,0.00019799,2]
[365317121,1749597032586,-416.34968076,0.00019799,2]
[365317123,1749597032597,-83.65031924,0.00019799,2]
[365317125,1749597032607,-264.41274255,0.00019799,2]
[365317127,1749597032626,-235.58725745,0.00019799,2]
[365317129,1749597032635,-425.53274255,0.00019799,2]
[365317131,1749597032652,-74.46725745,0.00019799,2]
[365317133,1749597032662,-500.0,0.00019799,2]
[365317135,1749597032671,-500.0,0.00019799,2]
[365317137,1749597032681,-558.17930567,0.00019799,2]
[365317138,1749597032691,-455.67884013,0.00019799,2]
[365317248,1749597037509,-883.0,0.00019525,2]
[365317249,1749597037519,-44.32115987,0.00019799,2]
[365317250,1749597037529,-201.31390372,0.00019799,2]
[365317251,1749597037539,-500.0,0.00019799,2]
[365317252,1749597037549,-1000.0,0.000198,2]
[365317253,1749597037558,-1000.0,0.000198,2]
[365317254,1749597037567,-1000.0,0.000198,2]
[365317255,1749597037576,-500.0,0.000198,2]
[365317256,1749597037586,-1000.0,0.000198,2]
[365317257,1749597037596,-155.6610605,0.000198,2]
[365317258,1749597037605,-1572.58675475,0.0001981,2]
[365317259,1749597037616,-861.30215484,0.00019821,2]
[365317260,1749597037831,-711.28459991,0.00019821,2]
[365317261,1749597037841,-1572.58675475,0.00019833,2]
[365317262,1749597037851,-1000.0,0.00019843,2]
[365317263,1749597037860,-1572.58675475,0.00019844,2]
[365317264,1749597037873,-155.6610605,0.0001985,2]
[365317265,1749597037883,-1572.58675475,0.00019855,2]
[365317266,1749597037893,-1572.58675475,0.00019866,2]
[365317267,1749597037903,-968.96396631,0.00019872,2]
[365317268,1749597037912,-968.9639663,0.00019875,2]
[365317269,1749597037922,-504.77938798,0.00019878,2]
[365317270,1749597038019,-914.84058884,0.000179,2]
[365317271,1749597038029,-1067.80736677,0.00019878,2]
[365317272,1749597038039,-968.9639663,0.00019878,2]
[365317273,1749597038048,-968.9639663,0.00019881,2]
[365317274,1749597038058,-968.9639663,0.00019884,2]
[365317275,1749597038068,-160.83468592,0.00019886,2]
[365317276,1749597038078,-968.9639663,0.00019888,2]
[365317277,1749597038088,-1572.58675475,0.00019889,2]
[365317278,1749597038097,-968.9639663,0.00019891,2]
[365317279,1749597038107,-500.0,0.00019891,2]
[365317280,1749597038120,-500.0,0.00019891,2]
[365317281,1749597038133,-968.9639663,0.00019894,2]
[365317282,1749597038143,-968.9639663,0.00019897,2]
[365317283,1749597038153,-37.68289199,0.00019899,2]
[365317284,1749597038166,-803.08502706,0.00019899,2]
[365317285,1749597038178,-159.23208095,0.00019899,2]
[365317286,1749597038188,-500.0,0.00019899,2]
[365317287,1749597038197,-500.0,0.00019899,2]
[365317288,1749597038208,-2683.01975382,0.00019899,2]
[365317290,1749597038224,-400.0,0.00017969,2]
[365317716,1749597042653,-203.0,0.00017357,2]
[365317718,1749597042664,-514.84058873,0.00017969,2]
[365317720,1749597042674,-914.84058873,0.00018038,2]
[365317723,1749597042708,-914.84058873,0.00018107,2]
[365317725,1749597042719,-114.04214987,0.00018176,2]
[365317858,1749597775145,203.67,0.00013699,2]
[365317860,1749597947549,1322.524,0.00024657,120]
[365317861,1749597955104,-500.0,0.00016164,2]
[365317862,1749597955125,-159.87680761,0.00016164,2]
[365317863,1749597955144,-160.63152102,0.00016437,2]
[365317864,1749597955165,-182.69256288,0.00016437,2]
[365317865,1749597996403,1000.0,0.00024657,120]
[365317866,1749598045096,-4754.21975553,0.00016399,2]
[365317867,1749598045118,-1200.0,0.00016437,2]
[365317868,1749598045139,-300.0,0.00016437,2]
[365317869,1749598045159,-367.0,0.00016437,2]
[365317870,1749598045181,-480.0,0.00016438,2]
[365317871,1749598045201,-339.42757293,0.00016438,2]
[365317872,1749598045222,-490.0,0.00016438,2]
[365317873,1749598045244,-490.0,0.00016438,2]
[365317874,1749598045265,-235.67169887,0.00016438,2]
[365317875,1749598045288,-178.33472869,0.00016438,2]
[365317876,1749598045311,-203.06693284,0.00016438,2]
[365317877,1749598046084,-227.81282459,0.00016438,2]
[365317878,1749598046106,-277.74089119,0.00016438,2]
[365317879,1749598046128,-107.45983664,0.00016438,2]
[365317880,1749598048137,-382.54016336,0.00016438,2]
[365317881,1749598048161,-490.0,0.00016438,2]
[365317882,1749598048184,-379.7823908,0.00016438,2]
[365317883,1749598048206,-567.46,0.00016438,2]
[365317884,1749598048228,-490.0,0.00016438,2]
[365317885,1749598048251,-460.0,0.00016438,2]
[365317886,1749598048272,-460.0,0.00016438,2]
[365317887,1749598048294,-490.0,0.00016438,2]
[365317888,1749598048317,-480.0,0.00016438,2]
[365317889,1749598048339,-326.90815521,0.00016438,2]
[365317890,1749598048365,-490.0,0.00016438,2]
[365317891,1749598048386,-490.0,0.00016438,2]
[365317892,1749598048410,-273.58329131,0.00016438,2]
[365317893,1749598048434,-161.50759119,0.00016438,2]
[365317894,1749598053087,-328.49240881,0.00016438,2]
[365317895,1749598053112,-490.0,0.00016438,2]
[365317896,1749598053135,-490.0,0.00016438,2]
[365317897,1749598053158,-155.94816136,0.00016438,2]
[365317898,1749598053183,-490.0,0.00016438,2]
[365317899,1749598053206,-178.72205361,0.00016438,2]
[365317900,1749598053233,-311.76380089,0.00016438,2]
[365317909,1749598153136,-400.0,0.00016164,2]
[365317916,1749598231807,-350.0,0.00016437,2]
[365317917,1749598231819,-1.0,0.00016437,2]
[365317918,1749598231828,-300.0,0.00016437,2]
[365317919,1749598231840,-178.23619911,0.00016438,2]
[365317920,1749598231849,-490.0,0.00016438,2]
[365317921,1749598231859,-164.00671067,0.00016438,2]
[365317922,1749598231871,-325.99328933,0.00016438,2]
[365317923,1749598231880,-490.0,0.00016438,2]
[365317924,1749598231890,-490.0,0.00016438,2]
[365317925,1749598231900,-490.0,0.00016438,2]
[365317926,1749598231910,-490.0,0.00016438,2]
[365317927,1749598231919,-430.0,0.00016438,2]
[365317928,1749598231929,-510.0,0.00016602,2]
[365317929,1749598231938,-490.0,0.00016602,2]
[365317930,1749598231948,-490.0,0.00016602,2]
[365317931,1749598231957,-490.0,0.00016602,2]
[365317932,1749598231967,-558.02,0.00016602,2]
[365317933,1749598231976,-490.0,0.00016602,2]
[365317934,1749598231986,-490.0,0.00016602,2]
[365317935,1749598231996,-490.0,0.00016602,2]
[365317936,1749598232005,-490.0,0.00016602,2]
[365317937,1749598232015,-490.0,0.00016602,2]
[365317938,1749598232024,-490.0,0.00016602,2]
[365317939,1749598232034,-490.0,0.00016767,2]
[365317940,1749598232044,-490.0,0.00016767,2]
[365317941,1749598232053,-490.0,0.00016767,2]
[365317942,1749598232063,-490.0,0.00016767,2]
[365317943,1749598232072,-488.36,0.00016767,2]
[365317944,1749598232081,-490.0,0.00016767,2]
[365317945,1749598232090,-490.0,0.00016767,2]
[365317946,1749598232099,-574.00751825,0.00016767,2]
[365317947,1749598232109,-274.8,0.00016767,2]
[365317948,1749598232118,-490.0,0.00016931,2]
[365317949,1749598232127,-490.0,0.00016931,2]
[365317950,1749598232137,-633.10935329,0.00016931,2]
[365317951,1749598232147,-209.26,0.00016931,2]
[365317952,1749598232157,-490.0,0.00016931,2]
[365317953,1749598232166,-490.0,0.00016931,2]
[365317954,1749598232176,-490.0,0.00017095,2]
[365317955,1749598232185,-490.0,0.00017095,2]
[365317956,1749598232194,-490.0,0.00017095,2]
[365317957,1749598232204,-297.19,0.00017095,2]
[365317958,1749598232213,-150.0,0.00017228,7]
[365317959,1749598232222,-157.77,0.00017245,2]
[365317960,1749598232232,-490.0,0.0001726,2]
[365317961,1749598232241,-490.0,0.0001726,2]
[365317962,1749598232251,-318.1,0.0001726,2]
[365317963,1749598232260,-490.0,0.00017424,2]
[365317964,1749598232271,-490.0,0.00017424,2]
[365317965,1749598232281,-200.0,0.00017516,2]
[365317966,1749598232290,-457.67598949,0.00017525,2]
[365317967,1749598232299,-490.0,0.00017589,2]
[365317968,1749598232308,-490.0,0.00017589,2]
[365317969,1749598232318,-173.05,0.00017683,2]
[365317970,1749598232327,-1000.0,0.00017736,2]
[365317971,1749598232337,-490.0,0.00017753,2]
[365317972,1749598232346,-490.0,0.00017753,2]
[365317973,1749598232356,-300.0,0.0001778,2]
[365317974,1749598232365,-151.0,0.00017819,2]
[365317975,1749598232375,-17042.84,0.0001783,2]
[365317976,1749598232384,-200.0,0.00017848,2]
[365317978,1749598232396,-250.0,0.00017872,2]
[365317980,1749598232406,-1382.0687286,0.000179,2]
[365317982,1749598232415,-368.54,0.00017917,2]
[365317984,1749598232424,-490.0,0.00017917,2]
[365317986,1749598232433,-420.0,0.00017963,2]
[365317988,1749598232443,-1382.06872843,0.00017969,2]
[365317990,1749598232452,-353.79,0.00017985,2]
[365317993,1749598232467,-833.29909032,0.00018,2]
[365317995,1749598232476,-666.0,0.00018024,2]
[365317997,1749598232486,-260.01,0.00018032,2]
[365317999,1749598232499,-1382.06872843,0.00018038,2]
[365318001,1749598232509,-799.66,0.00018051,2]
[365318003,1749598232518,-490.0,0.00018082,2]
[365318005,1749598232528,-1382.06872843,0.00018107,2]
[365318007,1749598232538,-1382.06872843,0.00018176,2]
[365318009,1749598232548,-1382.06872843,0.00018245,2]
[365318011,1749598232557,-490.0,0.00018246,2]
[365318013,1749598232566,-454.85,0.00018256,2]
[365318016,1749598232576,-22442.94,0.00018301,2]
[365318019,1749598232586,-1382.06872843,0.00018314,2]
[365318022,1749598232595,-200.0,0.00018317,3]
[365318025,1749598232604,-1433.6,0.0001833,2]
[365318028,1749598232615,-151.0,0.0001833,2]
[365318031,1749598232625,-207.4,0.0001833,2]
[365318034,1749598232635,-454.85,0.00018356,2]
[365318037,1749598232644,-493.89391514,0.00018383,2]
[365318040,1749598232656,-888.17481329,0.00018383,2]
[365318043,1749598232666,-490.0,0.0001841,2]
[365318046,1749598232675,-152.0,0.00018416,3]
[365318048,1749598232685,-1382.06872843,0.00018452,2]
[365318050,1749598232694,-150.0,0.00018458,2]
[365318052,1749598232703,-326.6,0.00018461,2]
[365318054,1749598232712,-163.33,0.00018461,2]
[365318056,1749598232720,-166.36,0.00018501,2]
[365318058,1749598232729,-1382.06872843,0.00018521,2]
[365318060,1749598232738,-490.0,0.00018575,2]
[365318061,1749598232747,-1382.06872843,0.0001859,2]
[365318062,1749598232758,-673.86370322,0.00018659,2]
[365318063,1749598232773,-600.0,0.00018659,2]
[365318064,1749598232788,-108.20502521,0.00018659,2]
[365318066,1749598232797,-509.70908659,0.00018728,2]
[365318068,1749598232809,-872.35964184,0.00018728,2]
[365318070,1749598232819,-490.0,0.00018739,2]
[365318072,1749598232828,-1382.06872843,0.00018797,2]
[365318074,1749598232839,-155.6610605,0.000188,2]
[365318076,1749598232847,-3972.75226187,0.00018804,2]
[365318077,1749598232857,-227.8016,0.00018835,2]
[365318079,1749598232866,-188.9,0.00018856,2]
[365318081,1749598232875,-1382.06872843,0.00018866,2]
[365318083,1749598232885,-339.79770063,0.00018899,2]
[365318086,1749598232895,-499.98032799,0.00018899,2]
[365318088,1749598232904,-411.25710041,0.00018899,2]
[365318089,1749598232913,-500.0,0.00018899,2]
[365318092,1749598232923,-60262.44984449,0.00018899,3]
[365318095,1749598232942,-347.5,0.00018899,3]
[365318097,1749598232953,-456.7858882,0.00018899,3]
[365318687,1749598240203,-763.91,0.00016647,2]
[365318688,1749598240213,-192.07867063,0.000188,2]
[365318689,1749598240222,-83622.91734307,0.00018899,3]
[365318690,1749598240234,-14842.00486709,0.00018899,3]
[365318691,1749598240244,-833.29909032,0.000189,3]
[365318692,1749598240254,-1236.75,0.000189,2]
[365318693,1749598240263,-1236.75,0.000189,2]
[365318694,1749598240273,-164.1372,0.000189,2]
[365318695,1749598240282,-59049.36,0.000189,2]
[365318696,1749598240291,-59049.36,0.000189,2]
[365318697,1749598240301,-490.0,0.00018904,2]
[365318698,1749598240311,-763.91,0.00018911,2]
[365318699,1749598240320,-3972.75226183,0.00018926,2]
[365318700,1749598240331,-1382.06872843,0.00018934,2]